Workbook

Sheet Tabelle1
C3: Optimales Produktionsprogramm mit relativen Deckungsbeiträgen
C5: Produkt | D5: A | E5: B | F5: C | G5: D | H5: E | I5: Kapazitätsgrenze
C6: Stückpreis in € | D6: 3.5 | E6: 3.1 | F6: 5.2 | G6: 7.4 | H6: 9 | I6: in Stunden
C7: variable Stückkosten in € | D7: 1.9 | E7: 2.4 | F7: 3.1 | G7: 3.8 | H7: 7 | I7: 7000
C8: Stückdeckungsbeitrag in € | D8: =D6-D7 -> 1.6 | E8: =E6-E7 -> 0.7 | F8: =F6-F7 -> 2.1 | G8: =G6-G7 -> 3.6 | H8: =H6-H7 -> 2 | I8: Auslastung in %
C9: Arbeitszeit (Minuten/Stück) | D9: 10 | E9: 5 | F9: 12 | G9: 15 | H9: 20 | I9: 90
C10: relativer Deckungsbeitrag | D10: =IF(D8>0,D8/D9,0) -> 0.16 | E10: =IF(E8>0,E8/E9,0) -> 0.14 | F10: =IF(F8>0,F8/F9,0) -> 0.175 | G10: =IF(G8>0,G8/G9,0) -> 0.24 | H10: =IF(H8>0,H8/H9,0) -> 0.1
C11: Rang | D11: =RANK(D10,$D$10:$H$10) -> 3 | E11: =RANK(E10,$D$10:$H$10) -> 4 | F11: =RANK(F10,$D$10:$H$10) -> 2 | G11: =RANK(G10,$D$10:$H$10) -> 1 | H11: =RANK(H10,$D$10:$H$10) -> 5
C12: Menge | D12: 9000 | E12: 2000 | F12: 8000 | G12: 8000 | H12: 4000
C14: Produktionsrangfolge | D14: =IF($D$11=1,$D$5,IF($E$11=1,$E$5,IF($F$11=1,$F$5,IF($G$11=1,$G$5,$H$5)))) -> D | E14: =IF($D$11=2,$D$5,IF($E$11=2,$E$5,IF($F$11=2,$F$5,IF($G$11=2,$G$5,$H$5)))) -> C | F14: =IF($D$11=3,$D$5,IF($E$11=3,$E$5,IF($F$11=3,$F$5,IF($G$11=3,$G$5,$H$5)))) -> A | G14: =IF($D$11=4,$D$5,IF($E$11=4,$E$5,IF($F$11=4,$F$5,IF($G$11=4,$G$5,$H$5)))) -> B | H14: =IF($D$11=5,$D$5,IF($E$11=5,$E$5,IF($F$11=5,$F$5,IF($G$11=5,$G$5,$H$5)))) -> E
C15: absetzbare Menge | D15: =IF($D$11=1,$D$12,IF($E$11=1,$E$12,IF($F$11=1,$F$12,IF($G$11=1,$G$12,$H$12)))) -> 8000 | E15: =IF($D$11=2,$D$12,IF($E$11=2,$E$12,IF($F$11=2,$F$12,IF($G$11=2,$G$12,$H$12)))) -> 8000 | F15: =IF($D$11=3,$D$12,IF($E$11=3,$E$12,IF($F$11=3,$F$12,IF($G$11=3,$G$12,$H$12)))) -> 9000 | G15: =IF($D$11=4,$D$12,IF($E$11=4,$E$12,IF($F$11=4,$F$12,IF($G$11=4,$G$12,$H$12)))) -> 2000 | H15: =IF($D$11=5,$D$12,IF($E$11=5,$E$12,IF($F$11=5,$F$12,IF($G$11=5,$G$12,$H$12)))) -> 4000
C16: beötigte Produktionsminuten | D16: =IF($D$11=1,$D$9*$D$12,IF($E$11=1,$E$9*$E$12,IF($F$11=1,$F$9*$F$12,IF($G$11=1,$G$9*$G$12,$H$9*$H$12)))) -> 120000 | E16: =IF($D$11=2,$D$9*$D$12,IF($E$11=2,$E$9*$E$12,IF($F$11=2,$F$9*$F$12,IF($G$11=2,$G$9*$G$12,$H$9*$H$12)))) -> 96000 | F16: =IF($D$11=3,$D$9*$D$12,IF($E$11=3,$E$9*$E$12,IF($F$11=3,$F$9*$F$12,IF($G$11=3,$G$9*$G$12,$H$9*$H$12)))) -> 90000 | G16: =IF($D$11=4,$D$9*$D$12,IF($E$11=4,$E$9*$E$12,IF($F$11=4,$F$9*$F$12,IF($G$11=4,$G$9*$G$12,$H$9*$H$12)))) -> 10000 | H16: =IF($D$11=5,$D$9*$D$12,IF($E$11=5,$E$9*$E$12,IF($F$11=5,$F$9*$F$12,IF($G$11=5,$G$9*$G$12,$H$9*$H$12)))) -> 80000
C17: benötigte Produktionsstunden | D17: =D16/60 -> 2000 | E17: =E16/60 -> 1600 | F17: =F16/60 -> 1500 | G17: =G16/60 -> 166.6666667 | H17: =H16/60 -> 1333.333333
C18: verfügbare Stunden | D18: =I7*I9/100 -> 6300 | E18: =D18-D17 -> 4300 | F18: =IF(E19>0,0,E18-E17) -> 2700 | G18: =IF(F19>0,0,F18-F17) -> 1200 | H18: =IF(G19>0,0,G18-G17) -> 1033.333333 | I18: =IF(I27<0,"Verlust!","Gewinn") -> Gewinn
C19: Fehlstunden | D19: =IF(D18>D17,0,D17-D18) -> 0 | E19: =IF(E18>E17,0,E17-E18) -> 0 | F19: =IF(F18>F17,0,F17-F18) -> 0 | G19: =IF(G18>G17,0,G17-G18) -> 0 | H19: =IF(H18>H17,0,H17-H18) -> 300
C20: verfügbare Minuten | D20: =IF(D19=0,D17*60,D18*60) -> 120000 | E20: =IF(E19=0,E17*60,E18*60) -> 96000 | F20: =IF(F19=0,F17*60,F18*60) -> 90000 | G20: =IF(G19=0,G17*60,G18*60) -> 10000 | H20: =IF(H19=0,H17*60,H18*60) -> 62000 | I20: =IF(SUM(D22:H22)>0,"nicht erfüllte Aufträge!","Aufträge erfüllt") -> nicht erfüllte Aufträge!
C21: mögliche Produktionsmenge | D21: =IF(D15>0,IF($D$11=1,D20/$D$9,IF($E$11=1,D20/$E$9,IF($F$11=1,D20/$F$9,IF($G$11=1,D20/$G$9,D20/$H$9)))),0) -> 8000 | E21: =IF(E15>0,IF($D$11=2,E20/$D$9,IF($E$11=2,E20/$E$9,IF($F$11=2,E20/$F$9,IF($G$11=2,E20/$G$9,E20/$H$9)))),0) -> 8000 | F21: =IF(F15>0,IF($D$11=3,F20/$D$9,IF($E$11=3,F20/$E$9,IF($F$11=3,F20/$F$9,IF($G$11=3,F20/$G$9,F20/$H$9)))),0) -> 9000 | G21: =IF(G15>0,IF($D$11=4,G20/$D$9,IF($E$11=4,G20/$E$9,IF($F$11=4,G20/$F$9,IF($G$11=4,G20/$G$9,G20/$H$9)))),0) -> 2000 | H21: =IF(H15>0,IF($D$11=5,H20/$D$9,IF($E$11=5,H20/$E$9,IF($F$11=5,H20/$F$9,IF($G$11=5,H20/$G$9,H20/$H$9)))),0) -> 3100
C22: nicht erfüllte Aufträge | D22: =D15-D21 -> 0 | E22: =E15-E21 -> 0 | F22: =F15-F21 -> 0 | G22: =G15-G21 -> 0 | H22: =H15-H21 -> 900
C24: Produkte | D24: =IF($D$11=1,$D$5,IF($E$11=1,$E$5,IF($F$11=1,$F$5,IF($G$11=1,$G$5,$H$5)))) -> D | E24: =IF($D$11=2,$D$5,IF($E$11=2,$E$5,IF($F$11=2,$F$5,IF($G$11=2,$G$5,$H$5)))) -> C | F24: =IF($D$11=3,$D$5,IF($E$11=3,$E$5,IF($F$11=3,$F$5,IF($G$11=3,$G$5,$H$5)))) -> A | G24: =IF($D$11=4,$D$5,IF($E$11=4,$E$5,IF($F$11=5,$F$5,IF($G$11=4,$G$5,$H$5)))) -> B | H24: =IF($D$11=5,$D$5,IF($E$11=5,$E$5,IF($F$11=5,$F$5,IF($G$11=5,$G$5,$H$5)))) -> E | I24: Summe
C25: Gesamtdeckungsbeitrag | D25: =IF($D$11=1,$D$8*D21,IF($E$11=1,$E$8*D21,IF($F$11=1,$F$8*D21,IF($G$11=1,$G$8*D21,$H$8*D21)))) -> 28800 | E25: =IF($D$11=2,$D$8*E21,IF($E$11=2,$E$8*E21,IF($F$11=2,$F$8*E21,IF($G$11=2,$G$8*E21,$H$8*E21)))) -> 16800 | F25: =IF($D$11=3,$D$8*F21,IF($E$11=3,$E$8*F21,IF($F$11=3,$F$8*F21,IF($G$11=3,$G$8*F21,$H$8*F21)))) -> 14400 | G25: =IF($D$11=4,$D$8*G21,IF($E$11=4,$E$8*G21,IF($F$11=4,$F$8*G21,IF($G$11=4,$G$8*G21,$H$8*G21)))) -> 1400 | H25: =IF($D$11=5,$D$8*H21,IF($E$11=5,$E$8*H21,IF($F$11=5,$F$8*H21,IF($G$11=5,$G$8*H21,$H$8*H21)))) -> 6200 | I25: =SUM(D25:H25) -> 67600
C26: fixe Gesamtkosten | I26: 50000
C27: Betriebsergebnis | I27: =I25-I26 -> 17600

Sheet Tabelle2
